{"text_format":"1","workbook":"xlsx","n_sheets":4,"sheets":["EJEMPLO SIMPLE ","EJEMPLO DOBLES","Hoja1","MACRO"],"not_rendered":{"charts":0,"images":0,"macros":1,"external_links":0,"defined_names":0,"comments":0,"pivot_tables":0},"unopened":[],"bounds":{"document_bytes":16777216,"sheet_cells":100000,"rows_first":2000,"rows_last":500,"rows_between":2000,"halvings":0,"cell_chars":16384,"cell_head_chars":4096},"cells_cut":0,"cells_raw":0,"read":"whole","date_system":"1900"}

{"sheet":"EJEMPLO SIMPLE ","index":0,"n_rows":14,"n_cols":17,"rows_kept":14,"cut":false,"hidden":false,"merged":[]}
[1,null,null,null,1,null,1,null,1,null,1,null,1,null,1,null,"COMBINACIONES ???"]
[1,null,null,null,1,null,1,null,1,null,1,null,1,null,1,null,{"$f":"COMBIN(6,2)","v":15}]
[1,"X",2,null,"X",null,"X",null,"X",null,2,null,1,null,1]
[1,null,null,null,1,null,1,null,1,null,1,null,1,null,1]
[1,null,null,null,1,null,1,null,1,null,1,null,1,null,1]
[1,null,null,null,1,null,1,null,1,null,1,null,1,null,1]
[1,null,null,null,1,null,1,null,1,null,1,null,1,null,1]
[1,null,null,null,1,null,1,null,1,null,1,null,1,null,1]
[1,null,null,null,1,null,1,null,1,null,1,null,1,null,1]
[1,null,null,null,1,null,1,null,1,null,1,null,1,null,1]
[1,"X",2,null,"X",null,"X",null,2,null,"X",null,"X",null,1]
[1,null,null,null,1,null,1,null,1,null,1,null,1,null,1]
[1,"X",2,null,"X",null,2,null,2,null,"X",null,"X",null,"X"]
[1,null,null,null,1,null,1,null,1,null,1,null,1,null,1]

{"sheet":"EJEMPLO DOBLES","index":1,"n_rows":14,"n_cols":17,"rows_kept":14,"cut":false,"hidden":false,"merged":[]}
[1,null,null,null,1,null,null,1,null,null,1,null,null,1,null,null,"COMBINACIONES ???"]
[1,null,null,null,1,null,null,1,null,null,1,null,null,1,null,null,{"$f":"COMBIN(6,2)","v":15}]
[1,"X",2,null,1,"X",null,1,"X",null,1,2,null,1,2]
[1,null,null,null,1,null,null,1,null,null,1,null,null,1]
[1,null,null,null,1,null,null,1,null,null,1,null,null,1]
[1,null,null,null,1,null,null,1,null,null,1,null,null,1]
[1,null,null,null,1,null,null,1,null,null,1,null,null,1]
[1,null,null,null,1,null,null,1,null,null,1,null,null,1]
[1,null,null,null,1,null,null,1,null,null,1,null,null,1]
[1,null,null,null,1,null,null,1,null,null,1,null,null,1]
[1,"X",2,null,1,"X",null,1,2,null,1,2,null,1,2]
[1,null,null,null,1,null,null,1,null,null,1,null,null,1]
[1,"X",2,null,1,2,null,1,2,null,1,2,null,1,"X"]
[1,null,null,null,1,null,null,1,null,null,1,null,null,1]

{"sheet":"Hoja1","index":2,"n_rows":14,"n_cols":5,"rows_kept":14,"cut":false,"hidden":false,"merged":[]}
[1,null,null,{"$f":"IF(ROW()-ROW($D$1)+1>COUNTA($A$1:$A$14)*COUNTA($B$1:$B$13),\"\",INDEX($A$1:$A$14,INT((ROW()-ROW($D$1))/COUNTA($B$1:$B$13)+1))&INDEX($B$1:$B$13,MOD(ROW()-ROW($D$1),COUNTA($B$1:$B$13))+1))","v":"1"},{"$f":"IF(ROW()-ROW($E$1)+1>COUNTA($B$1:$B$14)*COUNTA($C$1:$C$14),\"\",INDEX($B$1:$B$14,INT((ROW()-ROW($E$1))/COUNTA($C$1:$C$14)+1))&INDEX($C$1:$C$14,MOD(ROW()-ROW($E$1),COUNTA($C$1:$C$14))+1))","v":""}]
[1,null,null,"1",""]
[1,"X",2,"1X","2"]
[1,null,null,"1",""]
[1,null,null,"1",""]
[1,null,null,"1X","2"]
[1,null,null,"1","X"]
[1,null,null,"1","X"]
[1,null,null,"1X","X2"]
[1,null,null,"1",""]
[1,"X",2,"1",""]
[1,null,null,"1X",""]
[1,"X",2,"1",""]
[1,null,null,"1",""]

{"sheet":"MACRO","index":3,"n_rows":169,"n_cols":9,"rows_kept":169,"cut":false,"hidden":false,"merged":[]}
[1,null,null,1,1,null,null,null,"MACRO ORIGINAL DE FORO"]
[1,null,null,1,2,null,null,null,"Sub Combinar()"]
[1,"X",2,12,3,null,null,null,"Dim i As Integer, j As Integer, UltFilA As Integer, UltFilB As Integer, Aux As Integer"]
[1,null,null,1,4,null,null,null,"Aux = 1"]
[1,null,null,1,5,null,null,null,"UltFilA = Range(\"A65536\").End(xlUp).Row"]
[1,null,null,1,6,null,null,null,"UltFilB = Range(\"B65536\").End(xlUp).Row"]
[1,null,null,1,7,null,null,null,"For i = 1 To UltFilA"]
[1,null,null,1,8,null,null,null,"  For j = 1 To UltFilB"]
[1,null,null,1,9,null,null,null,"    Range(\"C\" & Aux) = Range(\"A\" & i) & Range(\"B\" & j)"]
[1,null,null,1,10,null,null,null,"    Aux = Aux + 1"]
[1,"X",2,12,11,null,null,null,"  Next j"]
[1,null,null,1,12,null,null,null,"Next i"]
[1,"X",2,12,13,null,null,null,"End Sub"]
[1,null,null,1,14]
[null,null,null,1,1]
[null,null,null,12,2]
[null,null,null,1,3]
[null,null,null,1,4]
[null,null,null,1,5]
[null,null,null,1,6]
[null,null,null,1,7]
[null,null,null,1,8,null,null,null,{"$f":"14*10","v":140}]
[null,null,null,1,9]
[null,null,null,12,10]
[null,null,null,1,11]
[null,null,null,12,12]
[null,null,null,"1X",13]
[null,null,null,"1X",14]
[null,null,null,"1X2",1]
[null,null,null,"1X",2]
[null,null,null,"1X",3]
[null,null,null,"1X",4]
[null,null,null,"1X",5]
[null,null,null,"1X",6]
[null,null,null,"1X",7]
[null,null,null,"1X",8]
[null,null,null,"1X2",9]
[null,null,null,"1X",10]
[null,null,null,"1X2",11]
[null,null,null,1,12]
[null,null,null,1,13]
[null,null,null,12,14]
[null,null,null,1,1]
[null,null,null,1,2]
[null,null,null,1,3]
[null,null,null,1,4]
[null,null,null,1,5]
[null,null,null,1,6]
[null,null,null,1,7]
[null,null,null,12,8]
[null,null,null,1,9]
[null,null,null,12,10]
[null,null,null,1,11]
[null,null,null,1,12]
[null,null,null,12,13]
[null,null,null,1,14]
[null,null,null,1,1]
[null,null,null,1,2]
[null,null,null,1,3]
[null,null,null,1,4]
[null,null,null,1,5]
[null,null,null,1,6]
[null,null,null,12,7]
[null,null,null,1,8]
[null,null,null,12,9]
[null,null,null,1,10]
[null,null,null,1,11]
[null,null,null,12,12]
[null,null,null,1,13]
[null,null,null,1,14]
[null,null,null,1,1]
[null,null,null,1,2]
[null,null,null,1,3]
[null,null,null,1,4]
[null,null,null,1,5]
[null,null,null,12,6]
[null,null,null,1,7]
[null,null,null,12,8]
[null,null,null,1,9]
[null,null,null,1,10]
[null,null,null,12,11]
[null,null,null,1,12]
[null,null,null,1,13]
[null,null,null,1,14]
[null,null,null,1,1]
[null,null,null,1,2]
[null,null,null,1,3]
[null,null,null,1,4]
[null,null,null,12,5]
[null,null,null,1,6]
[null,null,null,12,7]
[null,null,null,1,8]
[null,null,null,1,9]
[null,null,null,12,10]
[null,null,null,1,11]
[null,null,null,1,12]
[null,null,null,1,13]
[null,null,null,1,14]
[null,null,null,1,1]
[null,null,null,1,2]
[null,null,null,1,3]
[null,null,null,12,4]
[null,null,null,1,5]
[null,null,null,12,6]
[null,null,null,1,7]
[null,null,null,1,8]
[null,null,null,12,9]
[null,null,null,1,10]
[null,null,null,1,11]
[null,null,null,1,12]
[null,null,null,1,13]
[null,null,null,1,14]
[null,null,null,1,1]
[null,null,null,1,2]
[null,null,null,12,3]
[null,null,null,1,4]
[null,null,null,12,5]
[null,null,null,1,6]
[null,null,null,1,7]
[null,null,null,12,8]
[null,null,null,1,9]
[null,null,null,1,10]
[null,null,null,1,11]
[null,null,null,1,12]
[null,null,null,1,13]
[null,null,null,1,14]
[null,null,null,1,1]
[null,null,null,12,2]
[null,null,null,1,3]
[null,null,null,12,4]
[null,null,null,"1X",5]
[null,null,null,"1X",6]
[null,null,null,"1X2",7]
[null,null,null,"1X",8]
[null,null,null,"1X",9]
[null,null,null,"1X",10]
[null,null,null,"1X",11]
[null,null,null,"1X",12]
[null,null,null,"1X",13]
[null,null,null,"1X",14]
[null,null,null,"1X2",1]
[null,null,null,"1X",2]
[null,null,null,"1X2",3]
[null,null,null,1,4]
[null,null,null,1,5]
[null,null,null,12,6]
[null,null,null,1,7]
[null,null,null,1,8]
[null,null,null,1,9]
[null,null,null,1,10]
[null,null,null,1,11]
[null,null,null,1,12]
[null,null,null,1,13]
[null,null,null,12,14]
[null,null,null,1,1]
[null,null,null,12,2]
[null,null,null,"1X",3]
[null,null,null,"1X",4]
[null,null,null,"1X2",5]
[null,null,null,"1X",6]
[null,null,null,"1X",7]
[null,null,null,"1X",8]
[null,null,null,"1X",9]
[null,null,null,"1X",10]
[null,null,null,"1X",11]
[null,null,null,"1X",12]
[null,null,null,"1X2",13]
[null,null,null,"1X",14]
[null,null,null,"1X2"]